bitfinex/quotes_BTCUSD_20250922
["timestamp","ask_amount","ask_price","bid_price","bid_amount"]
[1758563879237,2.2158211,112540.0,112530.0,1e-08]
[1758563880815,2.21582138,112540.0,112530.0,1e-08]
[1758563881226,2.65073624,112540.0,112530.0,1e-08]
[1758563881431,2.20193624,112540.0,112530.0,1e-08]
[1758563884531,1.92185624,112540.0,112530.0,1e-08]
[1758563884729,1.76714138,112540.0,112530.0,1e-08]
[1758563885946,2.20205624,112540.0,112530.0,1e-08]
[1758563887859,1.46420138,112540.0,112530.0,1e-08]
[1758563888009,1.76862138,112540.0,112530.0,1e-08]
[1758563888445,1.76862138,112540.0,112530.0,0.08831968]
[1758563888446,0.61117452,112540.0,112530.0,0.08831968]
[1758563888829,0.02693,112540.0,112530.0,0.11004968]
[1758563889037,0.20464459,112540.0,112530.0,0.11004968]
[1758563889260,0.20464459,112540.0,112530.0,0.28778006]
[1758563889836,0.19964459,112540.0,112530.0,0.28778005]
[1758563890017,0.19964459,112540.0,112530.0,0.29078005]
[1758563890222,0.20264459,112540.0,112530.0,0.30178005]
[1758563895108,0.02493,112540.0,112530.0,0.73669491]
[1758563895913,0.63755945,112540.0,112530.0,0.40436967]
[1758563896115,0.63755945,112540.0,112530.0,0.10114967]
[1758563896292,0.64288945,112540.0,112530.0,0.09926967]
[1758563896493,0.66689945,112540.0,112530.0,0.09926967]
[1758563896694,0.66365945,112540.0,112530.0,0.10114967]
[1758563896898,0.63964945,112540.0,112530.0,0.10114967]
[1758563897597,0.63755945,112540.0,112530.0,0.12287967]
[1758563898614,0.64288945,112540.0,112530.0,0.09926967]
[1758563898810,0.66689945,112540.0,112530.0,0.09926967]
[1758563900228,0.66689945,112540.0,112530.0,0.014]
[1758563900229,1.28709945,112540.0,112530.0,0.014]
[1758563901535,1.00389945,112540.0,112530.0,0.003]
[1758563901674,1.28805945,112540.0,112530.0,0.006]
[1758563902029,0.17773038,112530.0,112520.0,0.0002]
[1758563902238,0.61264524,112530.0,112520.0,0.08546967]
[1758563902442,0.61473524,112530.0,112520.0,0.08734967]
[1758563902649,0.64145096,112530.0,112520.0,0.08734967]
[1758563903475,0.2377861,112530.0,112520.0,0.09034967]
[1758563903662,0.2324561,112530.0,112520.0,0.09034967]
[1758563903864,0.66946096,112530.0,112520.0,0.09034967]
[1758563904041,0.2084461,112530.0,112520.0,0.09034967]
[1758563904385,0.64336096,112530.0,112520.0,0.11207967]
[1758563904729,0.64336096,112530.0,112520.0,0.12985428]
[1758563905317,0.64336096,112530.0,112520.0,0.13102428]
[1758563905728,0.64336096,112530.0,112520.0,0.12985428]
[1758563909473,0.64336096,112530.0,112520.0,0.11207967]
[1758563909679,0.64336096,112530.0,112520.0,0.12985428]
[1758563913025,0.64538096,112530.0,112520.0,0.10812428]
[1758563913226,0.66959096,112530.0,112520.0,0.10812428]
[1758563914003,0.64538096,112530.0,112520.0,0.10812428]
[1758563914144,0.64336096,112530.0,112520.0,0.12985428]
[1758563915974,0.64336096,112530.0,112520.0,0.10812428]
[1758563916178,0.64538096,112530.0,112520.0,0.10812428]
[1758563917479,0.66959096,112530.0,112520.0,0.10812428]
[1758563917754,0.67283096,112530.0,112520.0,0.10812428]
[1758563917935,0.67283096,112530.0,112520.0,0.10624428]
[1758563919470,0.66757096,112530.0,112520.0,0.10812428]
[1758563919877,0.66959096,112530.0,112520.0,0.10812428]
[1758563920282,0.66959096,112530.0,112520.0,0.38796428]
[1758563920583,0.66959096,112530.0,112520.0,0.09034967]
[1758563920787,0.66959096,112530.0,112520.0,0.38840428]
[1758563920930,0.67283096,112530.0,112520.0,0.37062967]
[1758563922837,0.64862096,112530.0,112520.0,0.37062967]
[1758563922967,0.2084461,112530.0,112520.0,0.37062967]
[1758563923172,0.64336096,112530.0,112520.0,0.39235967]
[1758563923589,0.2084461,112530.0,112520.0,0.39352967]
[1758563923993,0.2084461,112530.0,112520.0,0.11324967]
[1758563924191,0.2084461,112530.0,112520.0,0.13102428]
[1758563924419,0.2084461,112530.0,112520.0,0.58893045]
[1758563924623,0.2084461,112530.0,112520.0,0.57115584]
[1758563924872,0.03071572,112530.0,112520.0,1.0144926]
[1758563925064,0.004,112530.0,112520.0,1.0362226]
[1758563925437,0.004,112530.0,112520.0,1.81113746]
[1758563925709,0.004,112530.0,112520.0,1.40292849]
[1758563926320,0.004,112530.0,112520.0,1.12276849]
[1758563926681,0.004,112530.0,112520.0,1.50404849]
[1758563927126,0.004,112530.0,112520.0,1.50104849]
[1758563927276,0.20438917,112560.0,112540.0,0.20785167]
[1758563927478,0.20485833,112560.0,112550.0,0.12664955]
[1758563927674,0.20485833,112560.0,112550.0,0.40704955]
[1758563927913,0.20485833,112560.0,112550.0,0.38927967]
[1758563928469,0.20485833,112560.0,112550.0,0.39227967]
[1758563928789,0.20985833,112560.0,112550.0,0.39227967]
[1758563928989,0.18315244,112560.0,112550.0,0.39227967]
[1758563929233,0.6180673,112560.0,112550.0,0.39227967]
[1758563930757,0.6180673,112560.0,112550.0,0.17839662]
[1758563931195,0.6180673,112560.0,112550.0,0.45867662]
[1758563931370,0.6180673,112560.0,112550.0,0.45863662]
[1758563932141,0.6180673,112560.0,112550.0,0.43690662]
[1758563932332,0.6200873,112560.0,112550.0,0.43690662]
[1758563933775,0.6442973,112560.0,112550.0,0.43690662]
[1758563933946,0.6475373,112560.0,112550.0,0.43690662]
[1758563934189,0.6475373,112560.0,112550.0,0.43678662]
[1758563934603,0.86107902,112560.0,112550.0,0.43678662]
[1758563934842,0.86107902,112560.0,112550.0,0.15666662]
[1758563935045,0.86107902,112560.0,112550.0,0.43678662]
[1758563935925,0.2040347,112560.0,112550.0,0.43678662]
[1758563936137,0.83160902,112560.0,112550.0,0.43678662]
[1758563936370,0.50571686,112560.0,112550.0,0.45851662]
[1758563936581,0.83160902,112560.0,112550.0,0.45851662]
[1758563936814,0.50571686,112560.0,112550.0,0.45851662]
[1758563937075,0.1798247,112560.0,112550.0,0.45851662]
[1758563937311,0.50571686,112560.0,112550.0,0.45851662]
[1758563938281,0.1798247,112560.0,112550.0,0.64580732]
[1758563938508,0.1798247,112560.0,112550.0,0.99342948]
[1758563938836,0.1798247,112560.0,112550.0,0.66753732]
[1758563939377,0.1798247,112560.0,112550.0,0.99342948]
[1758563939601,0.1798247,112560.0,112550.0,0.66753732]
[1758563939997,0.50571686,112560.0,112550.0,0.20854852]
[1758563940206,0.50571686,112560.0,112550.0,0.58470852]
[1758563942006,0.50571686,112560.0,112550.0,0.20854852]
[1758563942204,0.50571686,112560.0,112550.0,0.58494852]
[1758563942614,0.53526686,112560.0,112550.0,0.46521852]
[1758563942814,0.86115902,112560.0,112550.0,0.46521852]
[1758563943423,0.86115902,112560.0,112550.0,0.18493852]
[1758563943632,0.86115902,112560.0,112550.0,0.46517852]
[1758563946304,0.83661902,112560.0,112550.0,0.46693852]
[1758563946506,0.51072686,112560.0,112550.0,0.46693852]
[1758563946874,0.86115902,112560.0,112550.0,0.43486662]
[1758563949883,0.00546916,112560.0,112550.0,0.99338948]
[1758563953386,0.18315217,112560.0,112550.0,1.08926948]
[1758563953596,0.00546916,112560.0,112550.0,1.08926948]
[1758563953802,0.50904433,112560.0,112550.0,0.20971852]
[1758563954022,0.50904433,112560.0,112550.0,0.36451732]
[1758563954212,0.50904433,112560.0,112550.0,0.76216732]
[1758563956411,0.00546916,112560.0,112550.0,1.42918948]
[1758563956675,0.00546916,112560.0,112550.0,1.75508164]
[1758563957384,0.00046916,112560.0,112550.0,1.75208164]
[1758563957619,0.00346916,112560.0,112550.0,1.76408164]
[1758563960071,0.00346916,112560.0,112550.0,1.38820164]
[1758563960424,0.00346916,112560.0,112550.0,1.76400164]
[1758563960619,0.00346916,112560.0,112550.0,1.66796164]
[1758563960832,0.00346916,112560.0,112550.0,1.76400164]
[1758563962139,0.00346916,112560.0,112550.0,0.73641732]
[1758563962343,0.50900433,112560.0,112550.0,0.16378662]
[1758563962547,0.03154916,112560.0,112550.0,0.71716542]
[1758563962744,0.53512433,112560.0,112550.0,0.74731732]
[1758563963001,0.20923217,112560.0,112550.0,0.37163732]
[1758563963152,0.53512433,112560.0,112550.0,0.74731732]
[1758563963555,0.53512433,112560.0,112550.0,0.56961852]
[1758563964766,0.86101649,112560.0,112550.0,0.16378662]
[1758563964966,0.86101649,112560.0,112550.0,0.53938662]
[1758563965736,0.53512433,112560.0,112550.0,0.53938662]
[1758563968888,0.86101649,112560.0,112550.0,0.16378662]
[1758563969109,0.86101649,112560.0,112550.0,0.44330662]
[1758563972444,0.86101649,112560.0,112550.0,0.16378662]
[1758563972675,0.86101649,112560.0,112550.0,0.44326662]
[1758563974507,1.52690865,112560.0,112550.0,0.12414185]
[1758563974721,0.17773038,112530.0,112520.0,0.0002]
[1758563974933,0.50362254,112530.0,112520.0,0.30726967]
[1758563975113,0.50578254,112530.0,112520.0,0.30726967]
[1758563975544,0.50578254,112530.0,112520.0,0.33930157]
[1758563976099,0.17989038,112530.0,112520.0,0.33930157]
[1758563976303,0.50578254,112530.0,112520.0,0.33930157]
[1758563976509,0.50578254,112530.0,112520.0,0.34230157]
[1758563977399,0.50878254,112530.0,112520.0,0.34630157]
[1758563977779,0.50878254,112530.0,112520.0,0.41420378]
[1758563978118,0.18289038,112530.0,112520.0,0.41420378]
[1758563978301,0.18289038,112530.0,112520.0,1.26663427]
[1758563978302,0.003,112530.0,112520.0,1.26663427]
[1758563978791,0.003,112530.0,112520.0,1.60663427]
[1758563978992,0.003,112530.0,112520.0,1.93252643]
[1758563979451,0.003,112530.0,112520.0,1.98252643]
[1758563980714,0.00046916,112560.0,112550.0,0.2078507]
[1758563980878,0.00046916,112560.0,112550.0,1.11758927]
[1758563981080,0.00046916,112560.0,112550.0,0.69338037]
[1758563981284,0.00046916,112560.0,112550.0,1.18405954]
[1758563982202,0.00046916,112560.0,112550.0,1.18605954]
[1758563983634,0.00346916,112560.0,112550.0,1.18905954]
[1758563983777,0.00346916,112560.0,112550.0,0.81357954]
[1758563983989,0.00346916,112560.0,112550.0,1.18897954]
[1758563986041,0.00346916,112560.0,112550.0,0.82271952]
[1758563986625,0.00346916,112560.0,112550.0,1.19799952]
[1758563987366,0.00346916,112560.0,112550.0,0.82271952]
[1758563987566,0.00346916,112560.0,112550.0,1.19799952]
[1758563993290,0.00346916,112560.0,112550.0,0.77379062]
[1758563993510,0.00346916,112560.0,112550.0,1.19799952]
[1758563993734,0.00346916,112560.0,112550.0,1.53799952]
[1758563994350,0.00346916,112560.0,112550.0,1.53795952]
[1758563994616,0.00346916,112560.0,112550.0,1.70786967]
[1758563995753,0.00346916,112560.0,112550.0,1.11375062]
[1758563995972,0.00346916,112560.0,112550.0,1.70786967]
[1758563996914,0.00346916,112560.0,112550.0,1.33262967]
[1758563997116,0.00346916,112560.0,112550.0,1.01771062]
[1758563997261,0.00346916,112560.0,112550.0,1.70786967]
[1758563997666,0.00346916,112560.0,112550.0,1.11375062]
[1758563997899,0.00346916,112560.0,112550.0,1.70786967]
[1758563998322,0.21108217,112560.0,112550.0,1.07983064]
[1758563999519,0.21108217,112560.0,112550.0,0.36459064]
[1758563999884,0.21108217,112560.0,112550.0,0.73983064]
[1758564000292,0.21108217,112560.0,112550.0,0.18689184]
[1758564000505,0.21108217,112560.0,112550.0,0.15673994]
[1758564000732,1.08013675,112560.0,112550.0,0.15673994]
[1758564000936,0.64560946,112560.0,112550.0,0.43593994]
[1758564001746,0.21108217,112560.0,112550.0,0.43593994]
[1758564002410,0.21108217,112560.0,112550.0,0.61363874]
[1758564003170,0.21108217,112560.0,112550.0,0.43593994]
[1758564007954,0.21108217,112560.0,112550.0,0.61363874]
[1758564008162,0.21108217,112560.0,112550.0,0.43593994]
[1758564009155,0.64560946,112560.0,112550.0,0.43593994]
[1758564009375,0.64560946,112560.0,112550.0,0.15673994]
[1758564009863,0.64560946,112560.0,112550.0,0.43681994]
[1758564011303,1.08013675,112560.0,112550.0,0.43681994]
[1758564011905,0.64560946,112560.0,112550.0,0.43681994]
[1758564017539,0.67231731,112560.0,112550.0,0.43681994]
[1758564022996,0.23779002,112560.0,112550.0,0.43681994]
[1758564023196,0.67231731,112560.0,112550.0,0.43681994]
[1758564023599,0.67231731,112560.0,112550.0,0.43657994]
[1758564024597,0.67231731,112560.0,112550.0,0.15673994]
[1758564024836,0.67231731,112560.0,112550.0,0.43657994]
[1758564025410,0.67231731,112560.0,112550.0,0.15673994]
[1758564025643,0.67231731,112560.0,112550.0,0.43653994]
[1758564030283,0.67231731,112560.0,112550.0,0.15673994]
[1758564030697,0.67231731,112560.0,112550.0,0.34629994]
[1758564030840,0.67231731,112560.0,112550.0,0.15673994]
[1758564031040,0.67231731,112560.0,112550.0,0.43637994]
[1758564031939,0.67231731,112560.0,112550.0,0.15673994]
[1758564032394,0.67231731,112560.0,112550.0,0.35353994]
[1758564032597,0.67231731,112560.0,112550.0,0.43633994]
[1758564034528,0.67231731,112560.0,112550.0,0.15673994]
[1758564034772,0.67231731,112560.0,112550.0,0.43633994]
[1758564035941,0.67231731,112560.0,112550.0,0.43617994]
[1758564036145,1.01231731,112560.0,112550.0,0.43617994]
[1758564038775,1.4468446,112560.0,112550.0,0.09026967]
[1758564038975,1.45517639,112560.0,112550.0,0.2844]
[1758564039181,1.45517639,112560.0,112550.0,0.005]
[1758564039405,1.46142758,112560.0,112550.0,0.005]
[1758564039792,1.47809751,112560.0,112550.0,0.005]
[1758564040211,1.47809751,112560.0,112550.0,0.003]
[1758564040629,1.48009751,112560.0,112550.0,0.003]
[1758564040831,0.1776988,112550.0,112540.0,0.2718]
[1758564041009,0.17773038,112530.0,112520.0,0.21719411]
[1758564041145,0.17773038,112530.0,112520.0,0.67622028]
[1758564042171,0.18073038,112530.0,112520.0,0.68122028]
[1758564043015,0.18073038,112530.0,112520.0,0.76648995]
[1758564043465,0.18073038,112530.0,112520.0,0.58874378]
[1758564045223,0.18073038,112530.0,112520.0,0.59074378]
[1758564045771,0.18073038,112530.0,112520.0,0.76848995]
[1758564046626,0.18073038,112530.0,112520.0,0.59074378]
[1758564048529,0.18073038,112530.0,112520.0,0.76848995]
[1758564053584,0.18073038,112530.0,112520.0,0.76731995]
[1758564056712,0.18073038,112530.0,112520.0,1.09331715]
[1758564058533,0.003,112530.0,112520.0,1.09448715]
[1758564058817,0.18073038,112530.0,112520.0,1.09448715]
[1758564059035,0.003,112530.0,112520.0,1.42048435]
[1758564060386,0.003,112530.0,112520.0,0.39304995]
[1758564060598,0.003,112530.0,112520.0,1.42040435]
[1758564064114,0.003,112530.0,112520.0,1.04504435]
[1758564064311,0.003,112530.0,112520.0,1.42040435]
[1758564064841,0.003,112530.0,112520.0,1.32436435]
[1758564065074,0.003,112530.0,112520.0,1.42040435]
[1758564066476,0.003,112530.0,112520.0,1.04504435]
[1758564066682,0.003,112530.0,112520.0,1.42040435]
[1758564068590,0.003,112530.0,112520.0,1.04504435]
[1758564069179,0.18073038,112530.0,112520.0,1.04504435]
[1758564069380,0.003,112530.0,112520.0,1.42036435]
[1758564070464,0.003,112530.0,112520.0,1.04504435]
[1758564070614,0.003,112530.0,112520.0,1.42036435]
[1758564070820,0.003,112530.0,112520.0,1.04504435]
[1758564071170,0.18073038,112530.0,112520.0,1.32432435]
[1758564071373,0.18073038,112530.0,112520.0,1.42036435]
[1758564071719,0.003,112530.0,112520.0,1.42036435]
[1758564073000,0.003,112530.0,112520.0,1.04504435]
[1758564073206,0.18073038,112530.0,112520.0,1.42036435]
[1758564074153,0.003,112530.0,112520.0,1.42036435]
[1758564075742,0.003,112530.0,112520.0,1.04504435]
[1758564076139,0.003,112530.0,112520.0,1.42036435]
[1758564076552,0.003,112530.0,112520.0,0.76836995]
[1758564076773,0.18073038,112530.0,112520.0,1.04504435]
[1758564076957,0.18073038,112530.0,112520.0,0.39304995]
[1758564077161,0.18073038,112530.0,112520.0,1.42036435]
[1758564077562,0.18073038,112530.0,112520.0,0.67232995]
[1758564077764,0.18073038,112530.0,112520.0,0.39304995]
[1758564078102,0.18073038,112530.0,112520.0,0.89184098]
[1758564078103,0.18282038,112530.0,112520.0,0.89184098]
[1758564078269,0.20947038,112530.0,112520.0,0.89184098]
[1758564078791,0.20947038,112530.0,112520.0,1.07146715]
[1758564079205,0.20425038,112530.0,112520.0,1.07146715]
[1758564079418,0.18073038,112530.0,112520.0,1.07146715]
[1758564079782,0.18282038,112530.0,112520.0,1.07146715]
[1758564081513,0.18073038,112530.0,112520.0,1.09319715]
[1758564081718,0.18282038,112530.0,112520.0,0.51840098]
[1758564081921,0.53546758,112530.0,112520.0,0.46980378]
[1758564082098,0.53546758,112530.0,112520.0,0.56584378]
[1758564084078,0.20947038,112530.0,112520.0,0.56584378]
[1758564086173,0.20947038,112530.0,112520.0,0.19052378]
[1758564086378,0.53546758,112530.0,112520.0,0.56584378]
[1758564086785,0.53546758,112530.0,112520.0,0.46980378]
[1758564091084,0.54433587,112530.0,112520.0,0.46980378]
[1758564092280,0.21833867,112530.0,112520.0,0.47168378]
[1758564092490,0.21833867,112530.0,112520.0,1.32432435]
[1758564092491,0.003,112530.0,112520.0,1.32432435]
[1758564095013,0.003,112530.0,112520.0,1.65032155]
[1758564095447,0.003,112530.0,112520.0,1.32432435]
[1758564095661,0.003,112530.0,112520.0,1.66432435]
[1758564099868,0.003,112530.0,112520.0,2.04032155]
[1758564100069,0.17815217,112560.0,112550.0,0.5338479]
[1758564100276,0.18140217,112560.0,112550.0,0.49070157]
[1758564100489,0.18352217,112560.0,112550.0,0.81669877]
[1758564100706,0.20801217,112560.0,112550.0,0.81669877]
[1758564100897,0.20801217,112560.0,112550.0,0.99439757]
[1758564101027,0.20801217,112560.0,112550.0,0.89835757]
[1758564101257,0.20801217,112560.0,112550.0,0.44141877]
[1758564101479,0.20801217,112560.0,112550.0,0.81669877]
[1758564101686,0.20801217,112560.0,112550.0,0.99439757]
[1758564101898,0.21101217,112560.0,112550.0,1.00139757]
[1758564102535,0.21101217,112560.0,112550.0,0.62611757]
[1758564102735,0.21101217,112560.0,112550.0,0.72765877]
[1758564102994,0.21101217,112560.0,112550.0,0.89006233]
[1758564103194,0.21101217,112560.0,112550.0,1.06776113]
[1758564103471,0.21101217,112560.0,112550.0,1.06964113]
[1758564104227,0.21101217,112560.0,112550.0,0.89194233]
[1758564105262,0.21101217,112560.0,112550.0,1.06964113]
[1758564105474,0.18115217,112560.0,112550.0,1.06964113]
[1758564105672,0.18115217,112560.0,112550.0,1.09137113]
[1758564106607,0.18115217,112560.0,112550.0,0.53839233]
[1758564106837,0.18115217,112560.0,112550.0,0.21239513]
[1758564107051,0.21101217,112560.0,112550.0,0.79402233]
[1758564107459,0.21101217,112560.0,112550.0,0.46802513]
[1758564108078,0.20776217,112560.0,112550.0,0.64760393]
[1758564108281,0.18115217,112560.0,112550.0,0.99533113]
[1758564109575,0.18115217,112560.0,112550.0,0.97360113]
[1758564109889,0.00346916,112560.0,112550.0,0.99650113]
[1758564111101,0.00346916,112560.0,112550.0,0.76650393]
[1758564111308,0.00346916,112560.0,112550.0,1.09133113]
[1758564112050,0.00346916,112560.0,112550.0,0.36836393]
[1758564112248,0.00346916,112560.0,112550.0,1.09133113]
[1758564112482,0.00346916,112560.0,112550.0,0.76533393]
[1758564112883,0.00346916,112560.0,112550.0,0.39126393]
[1758564113004,0.00346916,112560.0,112550.0,0.67046393]
[1758564113218,0.00346916,112560.0,112550.0,0.76650393]
[1758564114395,0.00346916,112560.0,112550.0,1.09250113]
[1758564115881,0.00346916,112560.0,112550.0,0.71726113]
[1758564116081,0.00346916,112560.0,112550.0,0.99646113]
[1758564116285,0.00346916,112560.0,112550.0,0.71726113]
[1758564116462,0.00346916,112560.0,112550.0,1.09250113]
[1758564116668,0.00346916,112560.0,112550.0,0.76650393]
[1758564117412,0.00346916,112560.0,112550.0,0.39126393]
[1758564117643,0.00346916,112560.0,112550.0,0.67046393]
[1758564117843,0.00346916,112560.0,112550.0,0.39126393]
[1758564118081,0.00346916,112560.0,112550.0,0.67046393]
[1758564118297,0.00346916,112560.0,112550.0,0.76650393]
[1758564120172,0.00346916,112560.0,112550.0,1.20088666]
[1758564120398,0.00346916,112560.0,112550.0,0.76650393]
[1758564120891,0.00346916,112560.0,112550.0,1.20088666]
[1758564121629,0.00346916,112560.0,112550.0,0.82564666]
[1758564121847,0.00346916,112560.0,112550.0,0.39126393]
[1758564122076,0.00346916,112560.0,112550.0,1.20088666]
[1758564125975,0.00346916,112560.0,112550.0,0.82564666]
[1758564126587,0.00346916,112560.0,112550.0,1.20084666]
[1758564127251,0.00346916,112560.0,112550.0,0.39126393]
[1758564127456,0.00346916,112560.0,112550.0,0.36836393]
[1758564127696,0.6450749,112560.0,112550.0,0.18878513]
[1758564127908,0.6450749,112560.0,112550.0,0.74168393]
[1758564129488,0.6450749,112560.0,112550.0,0.64564393]
[1758564129703,0.6450749,112560.0,112550.0,0.74168393]
[1758564130076,0.6450749,112560.0,112550.0,0.36648393]
[1758564130283,0.6450749,112560.0,112550.0,0.74168393]
[1758564130485,0.6450749,112560.0,112550.0,0.56398513]
[1758564130761,0.21069217,112560.0,112550.0,0.74168393]
[1758564132026,0.21069217,112560.0,112550.0,0.36648393]
[1758564132238,0.6450749,112560.0,112550.0,0.18878513]
[1758564132441,0.6450749,112560.0,112550.0,0.46794513]
[1758564133867,0.6450749,112560.0,112550.0,0.18878513]
[1758564134067,0.6450749,112560.0,112550.0,0.46794513]
[1758564136087,0.67178092,112560.0,112550.0,0.43779323]
[1758564144587,0.67178092,112560.0,112550.0,0.15863323]
[1758564144820,1.10616365,112560.0,112550.0,0.43779323]
[1758564145490,0.67178092,112560.0,112550.0,0.43779323]
[1758564148214,0.20785819,112560.0,112550.0,0.43967323]
[1758564148473,0.21000819,112560.0,112550.0,0.43967323]
[1758564148676,0.20785819,112560.0,112550.0,0.46140323]
[1758564149059,0.21000819,112560.0,112550.0,0.43967323]
[1758564149476,0.23736819,112560.0,112550.0,0.43967323]
[1758564149685,0.23736819,112560.0,112550.0,0.43779323]
[1758564150088,0.23432819,112560.0,112550.0,0.43967323]
[1758564150298,0.21000819,112560.0,112550.0,0.43967323]
[1758564150491,0.20785819,112560.0,112550.0,0.43967323]
[1758564150729,0.21304819,112560.0,112550.0,0.46140323]
[1758564151024,0.21000819,112560.0,112550.0,0.46140323]
[1758564151804,0.1776988,112550.0,112540.0,0.0301519]
[1758564152026,0.61512153,112550.0,112540.0,0.22142967]
[1758564152278,0.64159153,112550.0,112540.0,0.22142967]
[1758564152477,0.66830007,112550.0,112540.0,0.22142967]
[1758564153095,0.67130007,112550.0,112540.0,0.22342967]
[1758564157183,0.67130007,112550.0,112540.0,0.36646967]
[1758564157357,0.17771459,112540.0,112530.0,0.01497082]
[1758564157589,0.61209732,112540.0,112530.0,0.29417082]
[1758564157739,0.61728732,112540.0,112530.0,0.29417082]
[1758564157940,0.66831845,112540.0,112530.0,0.29417082]
[1758564158176,0.67721212,112540.0,112530.0,0.29417082]
[1758564158769,0.67721212,112540.0,112530.0,0.29617082]
[1758564159309,0.68121212,112540.0,112530.0,0.29917082]
[1758564161034,0.68121212,112540.0,112530.0,0.01997082]
[1758564161276,0.17773038,112530.0,112520.0,1e-08]
[1758564161473,0.61211311,112530.0,112520.0,0.11332001]
[1758564161676,0.64162311,112530.0,112520.0,0.11332]
[1758564161877,0.66833725,112530.0,112520.0,0.11332]
[1758564162489,0.23395452,112530.0,112520.0,0.11332]
[1758564162694,0.66833725,112530.0,112520.0,0.11732]
[1758564163020,0.67933725,112530.0,112520.0,0.11732]
[1758564163614,0.68133725,112530.0,112520.0,0.11732]
[1758564163798,0.68133725,112530.0,112520.0,0.1841282]
[1758564164178,0.68133725,112530.0,112520.0,0.3500082]
[1758564167706,0.24695452,112530.0,112520.0,0.3500082]
[1758564168126,0.21744452,112530.0,112520.0,0.3717382]
[1758564169406,0.21959452,112530.0,112520.0,0.3500082]
[1758564169616,0.24695452,112530.0,112520.0,0.3500082]
[1758564172921,0.24391452,112530.0,112520.0,0.3500082]
[1758564173137,0.24695452,112530.0,112520.0,0.3500082]
[1758564173595,0.22263452,112530.0,112520.0,0.3500082]
[1758564173873,0.21744452,112530.0,112520.0,0.8998125]
[1758564174080,0.013,112530.0,112520.0,1.09928867]
[1758564175467,0.013,112530.0,112520.0,1.19540867]
[1758564178722,0.013,112530.0,112520.0,1.41282404]
[1758564179549,0.013,112530.0,112520.0,1.41278404]
[1758564180565,0.013,112530.0,112520.0,1.31670404]
[1758564180933,0.013,112530.0,112520.0,1.41278404]
[1758564182217,0.013,112530.0,112520.0,1.73868309]
[1758564182433,0.013,112530.0,112520.0,2.07868309]
[1758564182897,0.011,112530.0,112520.0,2.07868309]
[1758564183111,0.18703632,112560.0,112550.0,0.2078507]
[1758564183318,0.18703632,112560.0,112550.0,0.91994942]
[1758564184362,0.18903632,112560.0,112550.0,0.98571944]
[1758564184946,0.18903632,112560.0,112550.0,0.80802064]
[1758564185145,0.19108632,112560.0,112550.0,0.52882064]
[1758564185386,0.20716632,112560.0,112550.0,0.79029064]
[1758564185939,0.20716632,112560.0,112550.0,0.46439159]
[1758564186590,0.20716632,112560.0,112550.0,0.79029064]
[1758564187001,0.55758537,112560.0,112550.0,0.46439159]
[1758564188042,0.55758537,112560.0,112550.0,0.18519159]
[1758564188259,0.55758537,112560.0,112550.0,0.46439159]
[1758564188707,0.91079491,112560.0,112550.0,0.06977002]
[1758564188907,0.91079491,112560.0,112550.0,0.18645002]
[1758564189117,0.93750164,112560.0,112550.0,0.18645002]
[1758564189536,0.28570354,112560.0,112550.0,0.18645002]
[1758564189736,0.93750164,112560.0,112550.0,0.06977002]
[1758564190146,0.93750164,112560.0,112550.0,0.34893002]
[1758564191256,0.91019115,112560.0,112550.0,0.34893002]
[1758564193756,0.91019115,112560.0,112550.0,0.06977002]
[1758564193963,0.91019115,112560.0,112550.0,0.34893002]
[1758564201142,0.5546421,112560.0,112550.0,0.34893002]
[1758564201340,0.5546421,112560.0,112550.0,0.37066002]
[1758564202089,0.22874305,112560.0,112550.0,0.37066002]
[1758564202302,0.5546421,112560.0,112550.0,0.37066002]
[1758564202507,0.5566821,112560.0,112550.0,0.37066002]
[1758564203055,0.5597321,112560.0,112550.0,0.37066002]
[1758564203678,0.23383305,112560.0,112550.0,0.37066002]
[1758564203882,0.22874305,112560.0,112550.0,0.81198064]
[1758564204323,0.22874305,112560.0,112550.0,0.98967944]
[1758564204655,0.20203632,112560.0,112550.0,0.98967944]
[1758564205261,0.01546916,112560.0,112550.0,0.98967944]
[1758564205681,0.19315217,112560.0,112550.0,0.98967944]
[1758564206138,0.01546916,112560.0,112550.0,0.98967944]
[1758564206527,0.19315217,112560.0,112550.0,0.98967944]
[1758564207170,0.19315217,112560.0,112550.0,0.38462039]
[1758564207310,0.19315217,112560.0,112550.0,1.08571944]
[1758564207725,0.01546916,112560.0,112550.0,1.08571944]
[1758564208961,0.19315217,112560.0,112550.0,1.08571944]
[1758564209592,0.01546916,112560.0,112550.0,1.09483727]
[1758564209966,0.19315217,112560.0,112550.0,1.08571944]
[1758564211006,0.19315217,112560.0,112550.0,1.08567944]
[1758564211558,0.19315217,112560.0,112550.0,0.58208159]
[1758564211748,0.19315217,112560.0,112550.0,0.90798064]
[1758564211965,0.19315217,112560.0,112550.0,0.58208159]
[1758564212511,0.52119122,112560.0,112550.0,0.18519159]
[1758564212714,0.87420027,112560.0,112550.0,0.46431159]
[1758564212915,0.54830122,112560.0,112550.0,0.46431159]
[1758564213546,0.85019027,112560.0,112550.0,0.46431159]
[1758564213794,0.87420027,112560.0,112550.0,0.46431159]
[1758564214609,0.54830122,112560.0,112550.0,0.46431159]
[1758564215415,0.54830122,112560.0,112550.0,0.18519159]
[1758564215761,0.54830122,112560.0,112550.0,0.46431159]
[1758564215961,0.88830122,112560.0,112550.0,0.46431159]
[1758564216165,0.88830122,112560.0,112550.0,0.39854157]
[1758564216370,0.91500673,112560.0,112550.0,0.39854157]
[1758564220427,0.91500673,112560.0,112550.0,0.46423156]
[1758564222408,0.68270768,112560.0,112550.0,0.39854157]
[1758564222610,0.58910768,112560.0,112550.0,0.39854157]
[1758564223029,0.91500673,112560.0,112550.0,0.39854157]
[1758564223450,0.55985768,112560.0,112550.0,0.42027157]
[1758564223659,0.55985768,112560.0,112550.0,0.74617062]
[1758564223867,0.04217467,112560.0,112550.0,0.92386942]
[1758564224076,0.35546916,112560.0,112550.0,0.92386942]
[1758564224278,0.35546916,112560.0,112550.0,0.59817037]
[1758564224490,0.35546916,112560.0,112550.0,1.02010942]
[1758564224922,0.35546916,112560.0,112550.0,0.69421037]
[1758564225136,0.35546916,112560.0,112550.0,1.02010942]
[1758564225340,0.35546916,112560.0,112550.0,1.08712655]
[1758564225744,0.35346916,112560.0,112550.0,1.08712655]
[1758564225971,0.35346916,112560.0,112550.0,1.09012655]
[1758564226147,0.34046916,112560.0,112550.0,1.08612655]
[1758564226569,0.34346916,112560.0,112550.0,1.09012655]
[1758564228985,0.34346916,112560.0,112550.0,1.4160256]
[1758564229817,0.34346916,112560.0,112550.0,1.09012655]
[1758564231475,0.00346916,112560.0,112550.0,1.4160256]
[1758564231628,0.00346916,112560.0,112550.0,1.09012655]
[1758564232307,0.00346916,112560.0,112550.0,1.09008655]
[1758564232725,0.00346916,112560.0,112550.0,0.71476655]
[1758564233072,0.00346916,112560.0,112550.0,0.6681075]
[1758564233255,0.00346916,112560.0,112550.0,1.09004655]
[1758564233695,0.00346916,112560.0,112550.0,0.71476655]